bitfinex-derivatives/quotes_BTCF0:USTF0_20241122
["timestamp","ask_amount","ask_price","bid_price","bid_amount"]
[1732309712458,0.050433,99036.0,99034.0,0.0937]
[1732309715055,0.050431,99041.0,99038.0,0.050432]
[1732309715256,0.3608,99042.0,99040.0,0.050431]
[1732309715760,0.3608,99042.0,99041.0,0.050431]
[1732309715952,0.050431,99041.0,99034.0,0.0937]
[1732309716260,0.050431,99040.0,99039.0,0.050431]
[1732309716655,0.3608,99042.0,99034.0,0.0937]
[1732309716954,0.050433,99038.0,99037.0,0.050432]
[1732309717958,0.3608,99042.0,99039.0,0.050431]
[1732309718161,0.3608,99042.0,99034.0,0.0937]
[1732309718454,0.41123,99042.0,99039.0,0.050431]
[1732309718659,0.050431,99041.0,99039.0,0.050431]
[1732309719159,0.050431,99041.0,99034.0,0.0937]
[1732309719160,0.11452,99051.0,99034.0,0.0937]
[1732309719353,0.050428,99046.0,99044.0,0.050429]
[1732309720761,0.050428,99046.0,99045.0,0.050429]
[1732309722362,0.050433,99037.0,99035.0,0.050433]
[1732309722562,0.050433,99038.0,99035.0,0.050433]
[1732309722758,0.050433,99036.0,99035.0,0.050433]
[1732309722951,0.050426,99052.0,99038.0,0.050432]
[1732309723156,0.0323,99056.0,99034.0,0.0937]
[1732309723654,0.050433,99037.0,99034.0,0.0937]
[1732309723855,0.050434,99036.0,99035.0,0.050434]
[1732309724257,0.050434,99035.0,99034.0,0.0624]
[1732309724565,0.050434,99035.0,99034.0,0.0302]
[1732309727462,0.050434,99035.0,99034.0,0.080634]
[1732309730066,0.11424,99041.0,99038.0,0.050432]
[1732309730067,0.050431,99040.0,99038.0,0.050432]
[1732309730271,0.050431,99040.0,99034.0,0.0302]
[1732309730471,0.050431,99040.0,99039.0,0.050432]
[1732309730763,0.050424,99055.0,99034.0,0.0302]
[1732309730764,0.11424,99044.0,99034.0,0.0302]
[1732309730975,0.11424,99044.0,99036.0,0.050433]
[1732309731269,0.050433,99037.0,99036.0,0.050433]
[1732309731486,0.050431,99041.0,99035.0,0.050434]
[1732309731698,0.050431,99041.0,99034.0,0.0302]
[1732309731905,0.050433,99036.0,99034.0,0.080634]
[1732309732292,0.050433,99036.0,99035.0,0.050434]
[1732309733206,0.3608,99042.0,99034.0,0.0302]
[1732309733386,0.050434,99035.0,99034.0,0.0302]
[1732309736291,0.050434,99034.0,99033.0,0.0006]
[1732309736495,0.050441,99021.0,99020.0,0.00151483]
[1732309736701,0.411241,99021.0,99020.0,0.00151483]
[1732309738496,0.3545787,99021.0,99020.0,0.00151483]
[1732309738700,0.4050197,99021.0,99020.0,0.00151483]
[1732309739204,0.050451,99001.0,99000.0,0.1]
[1732309739403,0.050451,99001.0,99000.0,0.150451]
[1732309739696,0.050451,99002.0,99001.0,0.050449]
[1732309740306,0.050448,99007.0,99006.0,0.050447]
[1732309742600,0.050448,99009.0,99008.0,0.050447]
[1732309742909,0.050451,99003.0,99002.0,0.05045]
[1732309743600,0.050451,99001.0,99000.0,0.1]
[1732309744197,0.050451,99001.0,99000.0,0.150452]
[1732309744701,0.050451,99001.0,99000.0,0.1]
[1732309745403,0.050451,99001.0,98907.0,0.502]
[1732309745404,0.3608,98971.0,98907.0,0.502]
[1732309745605,0.3608,98971.0,98823.0,0.505422]
[1732309745606,0.1008,98851.0,98800.0,0.019]
[1732309745808,0.050515,98875.0,98744.0,0.000125]
[1732309745809,0.19525074,98810.0,98744.0,0.000125]
[1732309746003,0.7216,98745.0,98744.0,0.000125]
[1732309746197,0.5702485,98745.0,98744.0,0.00016752]
[1732309746409,0.5702485,98745.0,98741.0,0.4032]
[1732309746701,0.5702485,98745.0,98744.0,0.4032]
[1732309747103,0.5702485,98745.0,98744.0,0.17472]
[1732309747295,0.5702485,98745.0,98744.0,0.001693]
[1732309747494,0.5702485,98745.0,98744.0,0.4032]
[1732309747686,0.5702485,98745.0,98741.0,0.050583]
[1732309747889,0.5702485,98745.0,98744.0,0.11]
[1732309748295,0.5702485,98745.0,98744.0,0.40417207]
[1732309748697,0.5702485,98745.0,98744.0,0.16302852]
[1732309748892,0.5702485,98745.0,98744.0,0.04793631]
[1732309749184,0.5702485,98745.0,98744.0,0.35342184]
[1732309749393,0.5702485,98745.0,98744.0,0.46342184]
[1732309749991,0.4418305,98745.0,98744.0,0.46342184]
[1732309750191,0.3689,98764.0,98744.0,0.45962184]
[1732309750400,0.3608,98776.0,98758.0,0.3608]
[1732309750696,0.3608,98776.0,98767.0,0.00337715]
[1732309750896,0.3608,98785.0,98775.0,0.050566]
[1732309750897,0.3608,98777.0,98775.0,0.050566]
[1732309751093,0.3608,98788.0,98771.0,0.3608]
[1732309751287,0.3608,98788.0,98787.0,0.05056]
[1732309752693,0.00151998,98795.0,98794.0,0.050557]
[1732309752887,0.3608,98798.0,98779.0,0.3608]
[1732309753274,0.3608,98787.0,98780.0,0.18184]
[1732309753479,0.3608,98787.0,98761.0,0.3608]
[1732309753480,0.3608,98787.0,98786.0,0.050561]
[1732309753773,0.3608,98787.0,98786.0,0.232401]
[1732309754476,0.3608,98787.0,98786.0,0.050561]
[1732309754676,0.3608,98787.0,98774.0,0.050567]
[1732309754971,0.3608,98775.0,98774.0,0.050567]
[1732309755766,0.3608,98775.0,98773.0,0.11343474]
[1732309755971,0.3608,98787.0,98774.0,0.232447]
[1732309756274,0.3608,98787.0,98766.0,0.02018374]
[1732309756275,0.3608,98787.0,98786.0,0.050561]
[1732309756478,0.297873,98797.0,98796.0,0.050556]
[1732309756670,0.3608,98808.0,98807.0,0.05055]
[1732309756870,0.3608,98808.0,98798.0,0.22685061]
[1732309757179,0.00151901,98815.0,98790.0,0.3608]
[1732309757370,0.00151901,98815.0,98814.0,0.050547]
[1732309757679,1e-08,98815.0,98814.0,0.750707]
[1732309757868,0.3608,98841.0,98840.0,0.050533]
[1732309758072,0.3608,98852.0,98840.0,0.1754]
[1732309758577,0.3608,98852.0,98847.0,0.050529]
[1732309758784,0.00809,98851.0,98850.0,0.050528]
[1732309758969,0.00809,98851.0,98850.0,0.411328]
[1732309759571,0.02528,98856.0,98850.0,0.3608]
[1732309759777,0.3908,98884.0,98865.0,0.05052]
[1732309759981,0.3608,98870.0,98855.0,0.3608]
[1732309760175,0.3,98870.0,98854.0,0.17544]
[1732309760572,0.3608,98857.0,98854.0,0.17544]
[1732309760771,0.69536001,98869.0,98854.0,0.17544]
[1732309760979,0.69424,98868.0,98850.0,0.02207748]
[1732309761180,0.050528,98850.0,98819.0,0.17544]
[1732309761482,0.3608,98846.0,98830.0,0.050538]
[1732309761686,0.3608,98846.0,98831.0,0.17544]
[1732309761874,0.3608,98857.0,98852.0,0.050527]
[1732309762079,0.3608,98862.0,98832.0,0.17544]
[1732309762279,0.3608,98862.0,98835.0,0.050536]
[1732309762581,0.3608,98862.0,98832.0,0.17544]
[1732309762582,0.39192001,98866.0,98865.0,0.05052]
[1732309762788,0.3908,98879.0,98865.0,0.17544]
[1732309762985,0.30344,98873.0,98865.0,0.17544]
[1732309763282,0.39200001,98879.0,98865.0,0.17544]
[1732309763481,0.3908,98879.0,98865.0,0.17544]
[1732309763879,0.3908,98879.0,98866.0,0.17544]
[1732309764183,0.3908,98879.0,98877.0,0.050514]
[1732309764377,0.00151823,98881.0,98880.0,0.050513]
[1732309765887,0.00151823,98881.0,98871.0,0.29226517]
[1732309766483,0.00151823,98881.0,98880.0,0.050513]
[1732309766796,0.00151823,98881.0,98871.0,0.29226517]
[1732309766976,0.00151823,98881.0,98872.0,0.1754]
[1732309767181,0.3608,98873.0,98872.0,0.1754]
[1732309767790,0.7216,98873.0,98872.0,0.1754]
[1732309770486,0.3608,98873.0,98872.0,0.225917]
[1732309770878,0.02234902,98879.0,98878.0,0.050514]
[1732309771188,0.00151823,98881.0,98880.0,0.050513]
[1732309774981,0.00151823,98881.0,98872.0,0.5362]
[1732309774982,0.00151823,98881.0,98872.0,0.050517]
[1732309775292,0.00151823,98881.0,98873.0,0.1754]
[1732309775878,0.00151823,98881.0,98879.0,0.050513]
[1732309777196,0.3608,98880.0,98879.0,0.050513]
[1732309777389,0.00151823,98881.0,98873.0,0.1754]
[1732309777695,0.08898541,98874.0,98873.0,0.225916]
[1732309777885,0.08898541,98878.0,98873.0,0.1686]
[1732309778188,0.08898541,98880.0,98879.0,0.050513]
[1732309778389,0.08899157,98880.0,98879.0,0.050513]
[1732309778591,0.00151823,98881.0,98879.0,0.050513]
[1732309779294,0.00151823,98881.0,98880.0,0.1686]
[1732309780392,0.08913498,98889.0,98888.0,0.050509]
[1732309780686,0.14991371,98902.0,98899.0,0.050503]
[1732309780890,0.2189389,98900.0,98899.0,0.219103]
[1732309781086,0.1,98900.0,98899.0,0.219103]
[1732309781886,0.18922742,98900.0,98899.0,0.219103]
[1732309782092,0.1,98900.0,98899.0,0.219103]
[1732309783096,0.4608,98900.0,98899.0,0.219103]
[1732309783598,0.2189389,98900.0,98899.0,0.219103]
[1732309783886,0.1,98900.0,98899.0,0.219103]
[1732309784893,0.21913195,98900.0,98899.0,0.219103]
[1732309785090,0.1,98900.0,98899.0,0.219103]
[1732309785890,0.24991371,98900.0,98899.0,0.050503]
[1732309786092,0.1,98900.0,98899.0,0.212343]
[1732309787192,0.18224379,98900.0,98899.0,0.212343]
[1732309787493,0.18227325,98900.0,98899.0,0.212343]
[1732309788385,0.54307325,98900.0,98899.0,0.212343]
[1732309788695,0.36216971,98900.0,98899.0,0.03089038]
[1732309788891,0.18227325,98900.0,98899.0,0.08139338]
[1732309789081,0.36169534,98900.0,98899.0,0.08139338]
[1732309789683,0.18227325,98900.0,98899.0,0.08139338]
[1732309790588,0.18141176,98900.0,98899.0,0.08139338]
[1732309791490,0.36084813,98900.0,98899.0,0.08139338]
[1732309791888,0.35933264,98900.0,98899.0,0.08139338]
[1732309792184,0.17989627,98900.0,98899.0,0.08139338]
[1732309792581,0.17989627,98900.0,98899.0,0.1618]
[1732309793584,0.46022178,98900.0,98899.0,0.1618]
[1732309793787,0.17989627,98900.0,98899.0,0.212303]
[1732309794297,0.35967363,98900.0,98899.0,0.212303]
[1732309794500,0.17989627,98900.0,98899.0,0.212303]
[1732309794695,0.35968744,98900.0,98899.0,0.212303]
[1732309794884,0.54069627,98900.0,98899.0,0.050503]
[1732309795089,0.17989627,98900.0,98899.0,0.205343]
[1732309796189,0.17979058,98903.0,98899.0,0.205343]
[1732309796395,0.17979058,98906.0,98899.0,0.23256581]
[1732309796602,0.2098792,98922.0,98921.0,0.050492]
[1732309796791,0.49017082,98922.0,98921.0,0.10358345]
[1732309796985,0.28029162,98922.0,98921.0,0.15407545]
[1732309797386,0.3608,98935.0,98921.0,0.10358345]
[1732309797598,0.28023155,98934.0,98921.0,0.10358345]
[1732309797895,0.3608,98935.0,98921.0,0.10358345]
[1732309797896,0.14977104,98926.0,98921.0,0.10358345]
[1732309798094,0.14977104,98926.0,98925.0,0.05049]
[1732309798494,0.14977104,98927.0,98926.0,0.050489]
[1732309798698,0.3608,98935.0,98921.0,0.10358345]
[1732309798893,0.3608,98935.0,98932.0,0.050486]
[1732309799204,0.3608,98935.0,98934.0,0.050485]
[1732309799498,0.3608,98935.0,98931.0,0.050487]
[1732309799698,0.3608,98935.0,98931.0,0.050486]
[1732309800003,0.3608,98935.0,98921.0,0.13074381]
[1732309800193,0.14972166,98925.0,98921.0,0.13074381]
[1732309800396,0.14972166,98925.0,98924.0,0.05049]
[1732309800788,0.3608,98927.0,98926.0,0.050489]
[1732309800994,0.3608,98935.0,98921.0,0.13074381]
[1732309801195,0.14975171,98924.0,98923.0,0.050491]
[1732309801704,0.14975171,98925.0,98924.0,0.05049]
[1732309802200,0.1497654,98926.0,98925.0,0.05049]
[1732309802611,0.02734501,98938.0,98926.0,0.050489]
[1732309802612,0.14975192,98933.0,98926.0,0.050489]
[1732309802796,0.14975192,98933.0,98921.0,0.13074381]
[1732309802797,0.14975192,98933.0,98932.0,0.050486]
[1732309802996,0.3608,98937.0,98921.0,0.13074381]
[1732309803196,0.14975815,98934.0,98921.0,0.13074381]
[1732309803391,0.3608,98927.0,98916.0,0.1548]
[1732309803694,0.11977522,98919.0,98898.0,0.0015168]
[1732309803895,0.08983807,98910.0,98899.0,0.02668294]
[1732309804200,0.08983807,98910.0,98900.0,0.1548]
[1732309804500,0.050501,98905.0,98900.0,0.1548]
[1732309804702,0.3608,98903.0,98900.0,0.1548]
[1732309804901,0.3608,98903.0,98901.0,0.050502]
[1732309805299,0.3608,98903.0,98900.0,0.1548]
[1732309806404,0.3608,98903.0,98890.0,0.14852]
[1732309806602,0.3608,98895.0,98890.0,0.199027]
[1732309806904,0.3608,98907.0,98872.0,0.00151679]
[1732309807213,0.14689391,98900.0,98876.0,0.3873282]
[1732309807401,0.14689391,98890.0,98883.0,0.14852]
[1732309807595,0.3608,98885.0,98877.0,0.14852]
[1732309807795,0.3608,98885.0,98881.0,0.050512]
[1732309808002,0.3608,98885.0,98875.0,0.02738657]
[1732309808209,0.3608,98876.0,98872.0,0.00151679]
[1732309808501,0.050516,98873.0,98872.0,0.00151679]
[1732309808908,0.05052,98867.0,98861.0,0.14852]
[1732309809097,0.411322,98862.0,98861.0,0.14852]
[1732309809298,0.3608,98862.0,98858.0,0.02767714]
[1732309809494,0.3608,98859.0,98850.0,0.14856]
[1732309809705,0.3608,98851.0,98850.0,0.14856]
[1732309810500,0.3608,98851.0,98840.0,0.3406777]
[1732309810707,0.3608,98841.0,98840.0,0.3406777]
[1732309810907,0.3608,98867.0,98840.0,0.51607572]
[1732309811097,0.3608,98867.0,98852.0,0.050527]
[1732309811295,0.29147086,98867.0,98865.0,0.05052]
[1732309811499,0.027688,98884.0,98881.0,0.050512]
[1732309811705,0.3608,98889.0,98881.0,0.050512]
[1732309812499,0.38788514,98889.0,98866.0,0.14856]
[1732309812701,0.38788514,98889.0,98880.0,0.050512]
[1732309813496,0.38788514,98889.0,98867.0,0.14856]
[1732309813702,0.050516,98874.0,98864.0,0.14856]
[1732309814006,0.3608,98871.0,98864.0,0.14856]
[1732309814207,0.3608,98871.0,98866.0,0.05052]
[1732309814605,0.3608,98871.0,98867.0,0.14856]
[1732309814805,0.14689391,98880.0,98867.0,0.14856]
[1732309815007,0.3608,98873.0,98860.0,0.1424]
[1732309815197,0.14689391,98870.0,98861.0,0.1424]
[1732309815402,0.3908,98869.0,98828.0,0.3608]
[1732309815600,0.14689391,98860.0,98845.0,0.1424]
[1732309815808,0.39192001,98869.0,98845.0,0.5032]
[1732309816111,0.3908,98869.0,98845.0,0.5032]
[1732309816301,0.3908,98869.0,98860.0,0.050523]
[1732309816508,0.02704612,98869.0,98845.0,0.5032]
[1732309816710,0.3608,98872.0,98850.0,0.14689391]
[1732309816904,0.3608,98889.0,98857.0,0.3608]
[1732309817106,0.3608,98889.0,98881.0,0.050512]
[1732309817107,0.02744545,98888.0,98881.0,0.050512]
[1732309817307,0.3608,98889.0,98881.0,0.192912]
[1732309817509,0.3608,98890.0,98881.0,0.192912]
[1732309817706,0.02734222,98889.0,98881.0,0.192912]
[1732309818114,0.3608,98890.0,98881.0,0.192912]
[1732309819408,0.02754437,98903.0,98881.0,0.192912]
[1732309819614,0.3908,98913.0,98881.0,0.192912]
[1732309819801,0.3908,98913.0,98901.0,0.050502]
[1732309819802,0.00120001,98913.0,98901.0,0.050502]
[1732309820006,0.3608,98919.0,98901.0,0.14244]
[1732309820511,0.3608,98919.0,98907.0,0.050499]
[1732309820705,0.3608,98919.0,98904.0,0.0505]
[1732309820900,0.3608,98919.0,98901.0,0.14244]
[1732309821110,0.3608,98911.0,98901.0,0.14244]
[1732309821308,0.3608,98919.0,98906.0,0.050499]
[1732309821505,0.3608,98919.0,98901.0,0.14244]
[1732309821920,0.3608,98919.0,98914.0,0.050495]
[1732309822213,0.3608,98919.0,98915.0,0.050495]
[1732309822616,0.3608,98924.0,98915.0,0.050495]
[1732309824212,0.01151,98930.0,98916.0,0.64252]
[1732309824510,0.01151,98930.0,98929.0,0.050488]
[1732309824716,0.00191,98930.0,98929.0,0.050488]
[1732309825514,0.050479,98946.0,98929.0,0.050488]
[1732309825515,0.05048,98945.0,98929.0,0.050488]
[1732309826110,0.05048,98944.0,98929.0,0.050488]
[1732309826815,0.14689391,98940.0,98922.0,0.3608]
[1732309827017,0.3908,98939.0,98930.0,0.1424]
[1732309827212,0.00191,98933.0,98930.0,0.1424]
[1732309828315,0.050486,98932.0,98922.0,0.3608]
[1732309828619,0.00191,98933.0,98931.0,0.13624]
[1732309828813,0.00191,98933.0,98932.0,0.13624]
[1732309831013,0.36271,98933.0,98916.0,0.33924]
[1732309831214,0.14689391,98930.0,98917.0,0.13624]
[1732309831413,0.050488,98929.0,98917.0,0.13624]
[1732309831614,0.050488,98928.0,98917.0,0.13624]
[1732309831820,0.00191,98933.0,98917.0,0.13624]
[1732309832023,0.00191,98933.0,98917.0,0.49704]
[1732309832224,0.00191,98933.0,98920.0,0.050492]
[1732309833022,0.00191,98933.0,98921.0,0.13624]
[1732309833231,0.00191,98933.0,98921.0,0.186732]
[1732309833411,0.00191,98933.0,98921.0,0.13624]
[1732309833619,0.14975815,98934.0,98921.0,0.13624]
[1732309834121,0.14975815,98934.0,98927.0,0.050489]
[1732309834322,0.14975815,98934.0,98921.0,0.13624]
[1732309834725,0.14975815,98934.0,98917.0,0.36132]
[1732309834920,0.14975815,98934.0,98918.0,0.13624]
[1732309835124,0.14975815,98934.0,98919.0,0.050493]
[1732309835327,0.14975815,98934.0,98918.0,0.13624]
[1732309835824,0.050483,98938.0,98924.0,0.05049]
[1732309836025,0.050483,98938.0,98918.0,0.13624]
[1732309836225,0.050483,98938.0,98926.0,0.050489]
[1732309836722,0.3608,98939.0,98917.0,0.3608]
[1732309836925,0.050488,98929.0,98918.0,0.13624]
[1732309837229,0.05049,98925.0,98918.0,0.13624]
[1732309837527,0.14689391,98930.0,98916.0,0.33924]
[1732309837725,0.050497,98911.0,98910.0,0.00151652]
[1732309838120,0.050497,98910.0,98905.0,0.13028]
[1732309838431,0.050505,98896.0,98891.0,0.33916]
[1732309838726,0.3608,98906.0,98892.0,0.13028]
[1732309838923,0.38773591,98906.0,98892.0,0.13028]
[1732309839123,0.050506,98893.0,98892.0,0.13028]
[1732309839329,0.05051,98885.0,98882.0,0.13028]
[1732309839522,0.3608,98883.0,98882.0,0.13028]
[1732309840027,0.3608,98883.0,98872.0,0.02688976]
[1732309840325,0.3608,98883.0,98876.0,0.13028]
[1732309840522,0.050514,98877.0,98876.0,0.13028]
[1732309841227,0.02723722,98881.0,98859.0,0.33916]
[1732309841421,0.3608,98871.0,98866.0,0.13028]
[1732309841625,0.050519,98867.0,98866.0,0.13028]
[1732309841823,0.35459272,98871.0,98866.0,0.13028]
[1732309844023,0.00116,98883.0,98867.0,0.3608]
[1732309844224,0.3608,98881.0,98872.0,0.050517]
[1732309844731,0.3608,98793.0,98735.0,0.3608]
[1732309845022,0.00820073,98745.0,98729.0,0.05059]
[1732309845229,0.06492233,98730.0,98729.0,0.05059]
[1732309845527,0.14689391,98760.0,98726.0,0.3608]
[1732309845827,0.14689391,98760.0,98748.0,0.05058]
[1732309846021,0.3608,98754.0,98730.0,0.050589]
[1732309846217,0.3608,98753.0,98742.0,0.050583]
[1732309846417,0.3608,98753.0,98735.0,0.3608]
[1732309846623,0.3608,98743.0,98735.0,0.411387]
[1732309846821,0.22724928,98750.0,98735.0,0.3608]
[1732309847129,0.22724928,98750.0,98743.0,0.050583]
[1732309847328,0.3608,98763.0,98744.0,0.196422]
[1732309847633,0.3608,98763.0,98744.0,0.14584]
[1732309847830,0.3608,98755.0,98749.0,0.05058]
[1732309848024,0.00961,98762.0,98744.0,0.14584]
[1732309848230,0.00961,98762.0,98761.0,0.050574]
[1732309849529,0.00961,98762.0,98751.0,0.3608]
[1732309849530,0.22724928,98770.0,98765.0,0.050571]
[1732309849827,0.22724928,98770.0,98769.0,0.05057]
[1732309850224,0.22724928,98790.0,98766.0,0.14592]
[1732309850425,0.3608,98793.0,98766.0,0.14592]
[1732309850731,0.00112001,98799.0,98798.0,0.050555]
[1732309850932,0.00116,98803.0,98802.0,0.048643]
[1732309851131,0.00120001,98810.0,98798.0,0.14592]
[1732309851338,0.03378728,98821.0,98798.0,0.14592]
[1732309851634,0.61804928,98830.0,98811.0,0.050548]
[1732309851831,0.3608,98825.0,98811.0,0.050548]
[1732309852135,0.02018234,98826.0,98811.0,0.050548]
[1732309852527,0.22724928,98830.0,98811.0,0.050548]
[1732309852723,0.3608,98821.0,98811.0,0.050548]
[1732309853024,0.22724928,98830.0,98811.0,0.050548]
[1732309853733,0.02018234,98834.0,98811.0,0.411348]
[1732309853929,0.3608,98842.0,98815.0,0.050546]
[1732309854127,0.00112001,98849.0,98834.0,0.050536]
[1732309854327,0.3608,98838.0,98836.0,0.050535]
[1732309854531,0.0096,98848.0,98823.0,0.3608]
[1732309854734,0.3608,98838.0,98823.0,0.3608]
[1732309854934,0.0096,98848.0,98844.0,0.050531]
[1732309855531,0.0096,98848.0,98845.0,0.14592]
[1732309855830,0.0096,98848.0,98846.0,0.05053]
[1732309856035,0.0096,98848.0,98845.0,0.14592]
[1732309856341,0.39192001,98849.0,98847.0,0.050529]
[1732309856631,0.3908,98849.0,98848.0,0.3608]
[1732309856834,0.3908,98869.0,98848.0,0.3608]
[1732309857029,0.3908,98883.0,98858.0,0.3608]
[1732309857331,0.4253048,98883.0,98859.0,0.14592]
[1732309857530,0.3908,98889.0,98859.0,0.14592]
[1732309857928,0.3908,98889.0,98871.0,0.050517]
[1732309858123,0.3608,98880.0,98858.0,0.3608]
[1732309858329,0.22724928,98870.0,98859.0,0.14592]
[1732309858522,0.3608,98866.0,98859.0,0.14592]
[1732309858733,0.22724928,98870.0,98859.0,0.050523]
[1732309858928,0.22724928,98870.0,98860.0,0.14592]
[1732309859127,0.22724928,98870.0,98861.0,0.14592]
[1732309859323,0.3608,98882.0,98862.0,0.14592]
[1732309859532,0.00959,98881.0,98863.0,0.14592]
[1732309859725,0.00959,98881.0,98865.0,0.05052]
[1732309859922,0.00959,98881.0,98866.0,0.14592]
[1732309860530,0.00959,98881.0,98879.0,0.050513]
[1732309860833,0.00959,98881.0,98880.0,0.3608]
[1732309861229,0.0015188,98884.0,98883.0,0.050511]
[1732309861426,0.03409275,98902.0,98880.0,0.36136]
[1732309861736,0.3608,98886.0,98881.0,0.14592]
[1732309861936,0.050505,98897.0,98882.0,0.14592]
[1732309862135,0.39192001,98899.0,98883.0,0.14592]
[1732309862438,0.3908,98899.0,98884.0,0.14592]
[1732309862939,0.3908,98899.0,98889.0,0.050508]
[1732309863537,0.3908,98899.0,98895.0,0.050505]
[1732309863738,0.3908,98901.0,98884.0,0.14592]
[1732309863939,0.39196,98901.0,98894.0,0.050505]
[1732309864136,0.39196,98901.0,98893.0,0.050506]
[1732309864436,0.00959,98899.0,98894.0,0.050505]
[1732309864633,0.3608,98896.0,98887.0,0.050509]
[1732309865535,0.3608,98896.0,98884.0,0.14592]
[1732309865727,0.3608,98896.0,98889.0,0.050508]
[1732309866040,0.3608,98896.0,98890.0,0.050507]
[1732309866742,0.3608,98896.0,98892.0,0.050506]
[1732309867038,0.3608,98896.0,98893.0,0.050506]
[1732309867545,0.3608,98896.0,98891.0,0.050507]
[1732309867745,0.3608,98896.0,98894.0,0.050505]
[1732309868633,0.3608,98896.0,98895.0,0.14588]
[1732309870935,0.3908,98901.0,98895.0,0.14588]
[1732309871129,0.00112001,98901.0,98899.0,0.050503]
[1732309871736,0.3608,98904.0,98899.0,0.050503]
[1732309871942,0.03441345,98909.0,98899.0,0.050503]
[1732309872336,0.3908,98914.0,98899.0,0.050503]
[1732309872634,0.3908,98914.0,98899.0,0.196343]
[1732309872835,0.3608,98917.0,98899.0,0.196343]
[1732309873139,0.03411165,98910.0,98899.0,0.196343]
[1732309874038,0.3608,98917.0,98899.0,0.196343]
[1732309874444,0.76412,98900.0,98881.0,0.3608]
[1732309874637,0.14697446,98891.0,98882.0,0.13968]
[1732309874837,0.050507,98892.0,98883.0,0.13968]
[1732309875038,0.050507,98892.0,98884.0,0.13968]
[1732309875234,0.050504,98897.0,98885.0,0.13968]
[1732309875436,0.60777446,98900.0,98885.0,0.13968]
[1732309875437,0.050506,98894.0,98885.0,0.13968]
[1732309875844,0.3908,98899.0,98890.0,0.050508]
[1732309876037,0.3908,98899.0,98885.0,0.13968]
[1732309876342,0.3908,98899.0,98890.0,0.050508]
[1732309876543,0.3608,98896.0,98891.0,0.13968]
[1732309876740,0.3608,98896.0,98883.0,0.3608]
[1732309876741,0.3908,98895.0,98883.0,0.3608]
[1732309876941,0.3608,98884.0,98869.0,0.13968]
[1732309877535,0.3608,98884.0,98857.0,0.3608]
[1732309877848,0.050515,98875.0,98866.0,0.13968]
[1732309878044,0.3608,98867.0,98866.0,0.13968]
[1732309878241,0.39192001,98883.0,98857.0,0.3608]
[1732309878439,0.39192001,98883.0,98866.0,0.13968]
[1732309878440,0.3608,98868.0,98866.0,0.13968]
[1732309878642,0.050516,98875.0,98866.0,0.13968]
[1732309879550,0.3608,98867.0,98866.0,0.13968]
[1732309880251,0.4252067,98883.0,98866.0,0.13968]
[1732309880444,0.050513,98879.0,98866.0,0.13968]
[1732309880749,0.050511,98875.0,98866.0,0.13968]
[1732309881538,0.3608,98876.0,98866.0,0.13968]
[1732309881748,0.3608,98876.0,98870.0,0.050513]
[1732309881946,0.3608,98876.0,98873.0,0.050511]
[1732309882152,0.00959,98878.0,98866.0,0.13968]
[1732309882446,0.42408669,98883.0,98866.0,0.13968]
[1732309882751,0.0344067,98883.0,98874.0,0.05051]
[1732309882941,0.0344067,98883.0,98866.0,0.13968]
[1732309883142,0.0344067,98883.0,98872.0,0.050511]
[1732309883348,0.03328669,98883.0,98881.0,0.3608]
[1732309883549,0.050505,98885.0,98866.0,0.2246108]
[1732309883851,0.050505,98885.0,98868.0,0.050514]
[1732309884049,0.050506,98884.0,98869.0,0.050513]
[1732309884347,0.050506,98883.0,98869.0,0.050513]
[1732309884950,0.00958,98888.0,98866.0,0.1740958]
[1732309884951,0.060084,98888.0,98870.0,0.050513]
[1732309885142,0.050504,98887.0,98871.0,0.050512]
[1732309885345,0.050505,98886.0,98872.0,0.050512]
[1732309885550,0.050505,98886.0,98872.0,0.050511]
[1732309885749,0.050505,98886.0,98866.0,0.1740958]
[1732309885750,0.00958,98888.0,98866.0,0.1740958]
[1732309885950,0.00958,98888.0,98872.0,0.050512]
[1732309886152,0.050504,98887.0,98872.0,0.050512]
[1732309886358,0.050505,98886.0,98872.0,0.050512]
[1732309886656,0.00958,98888.0,98866.0,0.1740958]
[1732309886849,0.050507,98882.0,98866.0,0.1740958]
[1732309887154,0.050509,98879.0,98866.0,0.1740958]
[1732309887347,0.050509,98878.0,98866.0,0.1740958]
[1732309887545,0.050511,98874.0,98867.0,0.13968]
[1732309888654,0.3608,98868.0,98867.0,0.13968]
[1732309892256,0.03320382,98879.0,98867.0,0.13968]
[1732309892464,0.050509,98877.0,98867.0,0.13968]
[1732309892860,0.3608,98880.0,98867.0,0.13968]
[1732309893165,0.050511,98875.0,98867.0,0.13968]
[1732309893456,0.3608,98868.0,98867.0,0.13968]
[1732309893657,0.4467332,98880.0,98865.0,0.33928]
[1732309893852,0.44561319,98880.0,98866.0,0.13348]
[1732309894053,0.3608,98868.0,98866.0,0.13348]
[1732309894762,0.050514,98867.0,98866.0,0.13348]
[1732309895162,0.3608,98868.0,98865.0,0.33928]
[1732309895361,0.3608,98868.0,98866.0,0.13348]
[1732309896560,0.3608,98868.0,98867.0,0.050514]
[1732309897265,0.3962252,98880.0,98866.0,0.13348]
[1732309897456,0.39510519,98880.0,98866.0,0.13348]
[1732309897964,0.39510519,98880.0,98877.0,0.050509]
[1732309898160,0.39510519,98880.0,98866.0,0.13348]
[1732309898360,0.39510519,98880.0,98874.0,0.050511]
[1732309898565,0.39510519,98880.0,98866.0,0.13348]
[1732309898764,0.03430519,98880.0,98866.0,0.13348]
[1732309898961,0.3608,98884.0,98879.0,0.050508]
[1732309899361,0.3608,98884.0,98881.0,0.050507]
[1732309899669,0.3608,98884.0,98882.0,0.13348]
[1732309899869,0.3608,98884.0,98883.0,0.13348]
[1732309900472,0.411306,98884.0,98883.0,0.13348]